fUSD/lending_fUSD_20241220
["ID","MTS","AMOUNT","RATE_DAILY","PERIOD"]
[346119362,1734717032748,-491.23,0.00018996,2]
[346119363,1734717032757,-509.93,0.00018996,2]
[346119364,1734717032767,-500.25,0.00018996,2]
[346119366,1734717032777,-493.32,0.00018997,2]
[346119368,1734717032786,-504.12,0.00018997,2]
[346119369,1734717032795,-495.03,0.00018997,2]
[346119370,1734717032804,-509.26,0.00018997,2]
[346119371,1734717032813,-496.63,0.00018997,2]
[346119372,1734717032822,-507.81,0.00018997,2]
[346119373,1734717032831,-500.61,0.00018997,2]
[346119375,1734717032840,-505.33,0.00018997,2]
[346119377,1734717032849,-495.43,0.00018997,2]
[346119378,1734717032860,-505.63,0.00018997,2]
[346119379,1734717032869,-494.21,0.00018997,2]
[346119380,1734717032878,-491.5,0.00018997,2]
[346119381,1734717032888,-499.18,0.00018997,2]
[346119382,1734717032900,-499.78,0.00018997,2]
[346119384,1734717032913,-506.9,0.00018997,2]
[346119386,1734717032923,-490.78,0.00018997,2]
[346119388,1734717032933,-495.8,0.00018997,2]
[346119390,1734717032943,-498.51,0.00018997,2]
[346119392,1734717032953,-505.81,0.00018997,2]
[346119393,1734717032962,-500.34,0.00018998,2]
[346119394,1734717032972,-505.07,0.00018998,2]
[346119395,1734717032982,-496.82,0.00018999,2]
[346119396,1734717032992,-440.77528636,0.00019,2]
[346119397,1734717038404,-159.22471364,0.00019,2]
[346119398,1734717038414,-493.69,0.00019001,2]
[346119399,1734717038423,-492.97,0.00019004,2]
[346119400,1734717038433,-506.87,0.00019009,2]
[346119401,1734717038442,-500.03,0.0001902,2]
[346119402,1734717038451,-502.9,0.00019042,2]
[346119403,1734717038461,-503.25,0.00019083,2]
[346119404,1734717038470,-805.67,0.00019087,2]
[346119405,1734717038479,-502.65,0.00019163,2]
[346119406,1734717038488,-638.21,0.00019189,2]
[346119407,1734717038499,-500.61,0.00019315,2]
[346119408,1734717038508,-4889.69981635,0.00019378,2]
[346119410,1734717038524,-5658.77689871,0.00019378,2]
[346119411,1734717038535,-9425.52328494,0.00019378,2]
[346119412,1734717038544,-5132.69842806,0.00019502,2]
[346119413,1734717038555,-6952.75894572,0.00019502,2]
[346119414,1734717038565,-1263.0,0.00019869,2]
[346119415,1734717038574,-632.0,0.00019869,2]
[346119417,1734717038584,-564.0,0.00019869,2]
[346119418,1734717038594,-150.0,0.00019869,2]
[346119419,1734717038604,-1897.0,0.00019869,2]
[346119420,1734717038614,-919.0,0.00019869,2]
[346119421,1734717038624,-817.0,0.00019869,2]
[346119422,1734717038634,-3767.0,0.00019869,2]
[346119423,1734717038643,-1255.0,0.00019869,2]
[346119424,1734717038653,-535.0,0.00019869,2]
[346119425,1734717038662,-2084.852,0.00019869,2]
[346119426,1734717038672,-3883.0,0.00019869,2]
[346119427,1734717038682,-516.431,0.00019869,2]
[346119428,1734717038691,-150.0,0.00019869,2]
[346119429,1734717038701,-1035.576,0.00019869,2]
[346119430,1734717038710,-224.0,0.00019893,2]
[346119431,1734717038719,-1500.06068938,0.000199,2]
[346119432,1734717038729,-9150.2789931,0.0001998,2]
[346119433,1734717038740,-380.67046945,0.0001998,2]
[346119434,1734717038756,-8727.84177299,0.0001998,2]
[346119435,1734717038766,-2472.15822701,0.0002,2]
[346119436,1734717038777,-1638.5001,0.0002,2]
[346119452,1734717040296,-1000.0,0.0002,2]
[346119479,1734717043316,-4865.65,0.0002,2]
[346119480,1734717043433,-973.5000007,0.0002,2]
[346119481,1734717043444,-1374.4,0.0002,2]
[346119489,1734717046246,-404.880005,0.0002,2]
[346119490,1734717046303,-1280.60377805,0.0002,2]
[346119491,1734717046364,-5990.30788924,0.0002,2]
[346119492,1734717046375,-11356.53922463,0.0002,2]
[346119493,1734717046385,-1500.06068931,0.00020344,2]
[346119494,1734717046394,-783.1,0.00020649,2]
[346119495,1734717046404,-3000.0,0.000207,2]
[346119496,1734717046414,-1500.06068931,0.00020789,2]
[346119497,1734717046424,-224.0,0.00020841,2]
[346119498,1734717046433,-1000.0,0.00020943,2]
[346119499,1734717046442,-54830.58337431,0.00021,2]
[346119500,1734717046451,-4977.62524979,0.00021,2]
[346119501,1734717046461,-650.0,0.00021,2]
[346119502,1734717046469,-3519.0,0.00021,3]
[346119503,1734717046478,-153.0,0.00021001,2]
[346119504,1734717046487,-153.0,0.00021001,2]
[346119505,1734717046496,-153.0,0.00021001,2]
[346119506,1734717046506,-153.0,0.00021001,2]
[346119507,1734717046515,-153.0,0.00021001,2]
[346119508,1734717046524,-153.0,0.00021001,2]
[346119509,1734717046533,-153.0,0.00021001,2]
[346119510,1734717046543,-153.0,0.00021001,2]
[346119511,1734717046552,-153.0,0.00021001,2]
[346119512,1734717046562,-153.0,0.00021001,2]
[346119513,1734717046571,-153.0,0.00021001,2]
[346119514,1734717046580,-500.0,0.00021064,2]
[346119515,1734717046590,-500.0,0.00021064,2]
[346119516,1734717046599,-200.0,0.00021096,2]
[346119517,1734717046609,-915.75,0.00021143,2]
[346119518,1734717046618,-989.57,0.00021174,2]
[346119519,1734717046629,-1008.87,0.00021174,2]
[346119520,1734717046638,-998.6,0.00021174,2]
[346119521,1734717046648,-1500.06068931,0.00021233,2]
[346119522,1734717046658,-984.74,0.00021348,2]
[346119523,1734717046668,-1010.14,0.00021348,2]
[346119524,1734717046677,-1005.73,0.00021348,2]
[346119525,1734717046687,-638.21,0.00021587,2]
[346119526,1734717046697,-150.0,0.000216,4]
[346119527,1734717046707,-150.0,0.000216,4]
[346119529,1734717046717,-150.0,0.000216,4]
[346119531,1734717046726,-150.0,0.000216,4]
[346119533,1734717046736,-231.21625263,0.000216,4]
[346119535,1734717046746,-150.63814448,0.000216,4]
[346119537,1734717046755,-150.0,0.000216,4]
[346119539,1734717046765,-994.6,0.00021641,2]
[346119541,1734717046774,-1500.06068931,0.00021678,2]
[346119543,1734717046783,-224.0,0.00021788,2]
[346119545,1734717046792,-300.0,0.00021808,2]
[346119547,1734717046802,-5000.0,0.00021817,2]
[346119549,1734717046812,-7500.0,0.00021879,2]
[346119550,1734717046822,-21777.4440189,0.0002188,2]
[346119551,1734717046831,-500.0,0.0002189,2]
[346119552,1734717046840,-7386.52,0.000219,2]
[346119553,1734717046850,-163.125633,0.00021917,4]
[346119554,1734717046859,-172.275586,0.00021917,4]
[346119555,1734717046868,-578.97,0.00021917,4]
[346119556,1734717046880,-500.0,0.00021917,4]
[346119557,1734717046889,-500.0,0.00021917,4]
[346119558,1734717046901,-310.26424803,0.00021917,2]
[346119559,1734717046911,-500.0,0.00021917,4]
[346119560,1734717046920,-500.0,0.00021917,4]
[346119561,1734717046930,-500.0,0.00021917,2]
[346119562,1734717046940,-500.0,0.00021917,4]
[346119563,1734717046950,-500.0,0.00021917,2]
[346119564,1734717046960,-500.0,0.00021917,4]
[346119565,1734717046969,-500.0,0.00021917,4]
[346119566,1734717046980,-500.0,0.00021917,2]
[346119567,1734717046989,-500.0,0.00021917,4]
[346119568,1734717046998,-500.0,0.00021917,4]
[346119569,1734717047008,-1536.49,0.00021917,4]
[346119570,1734717047017,-247.3,0.00021917,4]
[346119571,1734717047026,-500.0,0.00021917,4]
[346119572,1734717047035,-227.74176005,0.00021917,4]
[346119573,1734717047044,-531.74,0.00021917,4]
[346119574,1734717047054,-519.39127084,0.00021917,4]
[346119575,1734717047063,-500.0,0.00021917,4]
[346119576,1734717047072,-500.0,0.00021917,4]
[346119577,1734717047082,-500.0,0.00021917,4]
[346119578,1734717047091,-500.0,0.00021917,4]
[346119579,1734717047297,-500.0,0.00021917,4]
[346119580,1734717047307,-500.0,0.00021917,4]
[346119581,1734717047316,-500.0,0.00021917,4]
[346119582,1734717047325,-205.68,0.00021917,4]
[346119583,1734717047334,-617.34,0.00021917,4]
[346119584,1734717047343,-245.3356456,0.00021917,2]
[346119585,1734717047352,-500.0,0.00021917,4]
[346119586,1734717047361,-500.0,0.00021917,4]
[346119587,1734717047370,-500.0,0.00021917,4]
[346119588,1734717047382,-428.69,0.00021917,4]
[346119589,1734717047391,-500.0,0.00021917,4]
[346119590,1734717047400,-500.0,0.00021917,4]
[346119591,1734717047409,-549.94,0.00021917,4]
[346119592,1734717047418,-500.0,0.00021917,4]
[346119593,1734717047427,-500.0,0.00021917,4]
[346119594,1734717047436,-500.0,0.00021917,4]
[346119595,1734717047448,-500.0,0.00021917,4]
[346119596,1734717047457,-500.0,0.00021917,4]
[346119597,1734717047466,-500.0,0.00021917,4]
[346119598,1734717047475,-500.0,0.00021917,4]
[346119599,1734717047484,-500.0,0.00021917,4]
[346119600,1734717047493,-739.57,0.00021917,4]
[346119601,1734717047503,-202.01,0.00021917,4]
[346119602,1734717047512,-500.0,0.00021917,4]
[346119603,1734717047521,-500.0,0.00021917,4]
[346119604,1734717047531,-500.0,0.00021917,4]
[346119605,1734717047541,-211.81,0.00021917,4]
[346119606,1734717047550,-2035.23,0.00021917,4]
[346119607,1734717047560,-576.41,0.00021917,4]
[346119608,1734717047572,-500.0,0.00021917,4]
[346119609,1734717047581,-500.0,0.00021917,4]
[346119610,1734717047591,-500.0,0.00021917,4]
[346119611,1734717047600,-500.0,0.00021917,4]
[346119612,1734717047609,-500.0,0.00021917,4]
[346119613,1734717047619,-500.0,0.00021917,4]
[346119614,1734717047630,-500.0,0.00021917,4]
[346119615,1734717047639,-500.0,0.00021917,4]
[346119616,1734717047648,-500.0,0.00021917,4]
[346119617,1734717047658,-414.94841099,0.00021917,4]
[346119618,1734717047667,-500.0,0.00021917,4]
[346119619,1734717047676,-500.0,0.00021917,4]
[346119620,1734717047686,-1297.48,0.00021917,4]
[346119621,1734717047695,-500.0,0.00021917,4]
[346119622,1734717047705,-500.0,0.00021917,4]
[346119623,1734717047714,-500.0,0.00021917,4]
[346119624,1734717047723,-500.0,0.00021917,4]
[346119625,1734717047733,-500.0,0.00021917,4]
[346119626,1734717047742,-1607.19,0.00021917,4]
[346119627,1734717047751,-718.94,0.00021917,4]
[346119628,1734717047761,-500.0,0.00021917,4]
[346119629,1734717047770,-1000.0,0.00021917,4]
[346119630,1734717047779,-640.65,0.00021917,4]
[346119631,1734717047789,-500.0,0.00021917,4]
[346119632,1734717047798,-620.48,0.00021917,4]
[346119633,1734717047807,-500.0,0.00021917,4]
[346119634,1734717047817,-720.12,0.00021917,4]
[346119635,1734717047827,-500.0,0.00021917,4]
[346119636,1734717047836,-1212.6,0.00021917,4]
[346119637,1734717047845,-1773.27,0.00021917,4]
[346119638,1734717047855,-317.40972164,0.00021917,4]
[346119639,1734717047864,-500.0,0.00021917,4]
[346119640,1734717047874,-213.22008861,0.00021917,4]
[346119641,1734717047884,-500.0,0.00021917,4]
[346119642,1734717047894,-500.0,0.00021917,4]
[346119643,1734717047907,-500.0,0.00021917,4]
[346119644,1734717047918,-500.0,0.00021917,4]
[346119645,1734717047928,-500.0,0.00021917,4]
[346119646,1734717047938,-273.96,0.00021917,4]
[346119647,1734717047948,-487.32566067,0.00021917,4]
[346119648,1734717047958,-500.0,0.00021917,4]
[346119649,1734717047967,-424.74912936,0.00021917,4]
[346119650,1734717047979,-505.68,0.00021917,4]
[346119651,1734717047989,-500.0,0.00021917,2]
[346119652,1734717047998,-500.0,0.00021917,4]
[346119653,1734717048008,-192.91,0.00021917,4]
[346119654,1734717048018,-500.0,0.00021917,4]
[346119655,1734717048028,-432.12,0.00021917,4]
[346119656,1734717048037,-500.0,0.00021917,4]
[346119657,1734717048046,-500.0,0.00021917,4]
[346119658,1734717048056,-500.0,0.00021917,4]
[346119659,1734717048066,-473.95,0.00021917,4]
[346119660,1734717048075,-500.0,0.00021917,4]
[346119661,1734717048086,-500.0,0.00021917,4]
[346119662,1734717048096,-500.0,0.00021917,4]
[346119663,1734717048105,-618.94,0.00021917,4]
[346119664,1734717048114,-615.17,0.00021917,4]
[346119665,1734717048123,-822.35,0.00021917,4]
[346119666,1734717048134,-367.13978058,0.00021917,4]
[346119667,1734717048144,-500.0,0.00021917,4]
[346119668,1734717048154,-500.0,0.00021917,4]
[346119669,1734717048163,-500.0,0.00021917,4]
[346119670,1734717048173,-500.0,0.00021917,4]
[346119671,1734717048183,-325.39289096,0.00021917,4]
[346119672,1734717048192,-625.99,0.00021917,4]
[346119673,1734717048201,-500.0,0.00021917,4]
[346119674,1734717048211,-501.66366882,0.00021917,4]
[346119675,1734717048220,-500.0,0.00021917,4]
[346119676,1734717048230,-500.0,0.00021917,4]
[346119677,1734717048239,-500.0,0.00021917,4]
[346119678,1734717048249,-2778.57,0.00021917,4]
[346119679,1734717048259,-927.57,0.00021917,4]
[346119680,1734717048269,-500.0,0.00021917,4]
[346119681,1734717048279,-500.0,0.00021917,4]
[346119682,1734717048289,-500.0,0.00021917,4]
[346119683,1734717048299,-500.0,0.00021917,4]
[346119684,1734717048308,-833.59,0.00021917,4]
[346119685,1734717048318,-500.0,0.00021917,4]
[346119686,1734717048327,-500.0,0.00021917,4]
[346119687,1734717048336,-500.0,0.00021917,4]
[346119688,1734717048346,-500.0,0.00021917,4]
[346119689,1734717048356,-630.67,0.00021917,4]
[346119690,1734717048365,-500.0,0.00021917,4]
[346119691,1734717048375,-500.0,0.00021917,4]
[346119692,1734717048386,-1253.39,0.00021917,4]
[346119693,1734717048395,-584.12,0.00021917,4]
[346119694,1734717048405,-500.0,0.00021917,4]
[346119695,1734717048415,-500.0,0.00021917,4]
[346119696,1734717048424,-381.98428292,0.00021917,4]
[346119697,1734717048433,-500.0,0.00021917,4]
[346119698,1734717048442,-500.0,0.00021917,4]
[346119699,1734717048452,-500.0,0.00021917,4]
[346119700,1734717048461,-553.29516359,0.00021917,4]
[346119701,1734717048470,-500.0,0.00021917,4]
[346119702,1734717048479,-500.0,0.00021917,4]
[346119703,1734717048489,-500.0,0.00021917,4]
[346119704,1734717048498,-500.0,0.00021917,4]
[346119705,1734717048507,-500.0,0.00021917,4]
[346119706,1734717048516,-500.0,0.00021917,4]
[346119707,1734717048527,-500.0,0.00021917,4]
[346119708,1734717048536,-500.0,0.00021917,4]
[346119709,1734717048546,-294.23,0.00021917,4]
[346119710,1734717048555,-10000.0,0.00022,2]
[346119711,1734717048566,-489.93,0.00022082,2]
[346119712,1734717048583,-1009.55,0.00022114,2]
[346119713,1734717048593,-1009.38,0.00022114,2]
[346119714,1734717048602,-1500.06068931,0.00022122,2]
[346119715,1734717048611,-500.0,0.0002216,2]
[346119716,1734717048621,-163.125633,0.00022191,4]
[346119717,1734717048632,-500.0,0.00022191,4]
[346119718,1734717048641,-502.63,0.00022191,4]
[346119719,1734717048650,-500.0,0.00022191,4]
[346119720,1734717048660,-500.0,0.00022191,4]
[346119721,1734717048670,-500.0,0.00022191,4]
[346119722,1734717048679,-500.0,0.00022191,2]
[346119723,1734717048689,-500.0,0.00022191,4]
[346119724,1734717048698,-500.0,0.00022191,4]
[346119725,1734717048708,-1536.49,0.00022191,4]
[346119726,1734717048718,-32.03034471,0.00022191,4]
[346119727,1734717048913,-467.96965529,0.00022191,4]
[346119728,1734717048922,-424.4665991,0.00022191,4]
[346119729,1734717048933,-532.54,0.00022191,4]
[346119730,1734717048943,-500.0,0.00022191,4]
[346119731,1734717048953,-500.0,0.00022191,4]
[346119732,1734717048962,-500.0,0.00022191,4]
[346119733,1734717048971,-617.34,0.00022191,4]
[346119734,1734717048983,-500.0,0.00022191,4]
[346119735,1734717048993,-500.0,0.00022191,4]
[346119736,1734717049003,-500.0,0.00022191,4]
[346119737,1734717049013,-500.0,0.00022191,4]
[346119738,1734717049023,-500.0,0.00022191,4]
[346119739,1734717049033,-500.0,0.00022191,4]
[346119740,1734717049042,-500.0,0.00022191,4]
[346119741,1734717049052,-500.0,0.00022191,4]
[346119742,1734717049061,-500.0,0.00022191,4]
[346119743,1734717049071,-500.0,0.00022191,4]
[346119744,1734717049080,-500.0,0.00022191,4]
[346119745,1734717049089,-333.75,0.00022191,4]
[346119746,1734717049098,-500.0,0.00022191,4]
[346119747,1734717049109,-739.57,0.00022191,4]
[346119748,1734717049118,-500.0,0.00022191,4]
[346119749,1734717049128,-282.12,0.00022191,4]
[346119750,1734717049137,-500.0,0.00022191,4]
[346119751,1734717049146,-2035.23,0.00022191,4]
[346119752,1734717049156,-500.0,0.00022191,4]
[346119753,1734717049165,-500.0,0.00022191,4]
[346119754,1734717049175,-500.0,0.00022191,4]
[346119755,1734717049184,-500.0,0.00022191,4]
[346119756,1734717049193,-500.0,0.00022191,4]
[346119757,1734717049203,-542.56645751,0.00022191,4]
[346119758,1734717049213,-500.0,0.00022191,4]
[346119759,1734717049222,-500.0,0.00022191,4]
[346119760,1734717049232,-500.0,0.00022191,4]
[346119761,1734717049241,-500.0,0.00022191,4]
[346119762,1734717049250,-500.0,0.00022191,4]
[346119763,1734717049260,-1297.48,0.00022191,4]
[346119764,1734717049269,-500.0,0.00022191,4]
[346119765,1734717049279,-500.0,0.00022191,4]
[346119766,1734717049289,-500.0,0.00022191,4]
[346119767,1734717049299,-500.0,0.00022191,4]
[346119768,1734717049308,-500.0,0.00022191,4]
[346119769,1734717049317,-718.94,0.00022191,4]
[346119770,1734717049328,-1607.19,0.00022191,4]
[346119771,1734717049337,-500.0,0.00022191,4]
[346119772,1734717049346,-1000.0,0.00022191,4]
[346119773,1734717049356,-640.65,0.00022191,4]
[346119774,1734717049366,-236.0,0.00022191,4]
[346119775,1734717049376,-620.48,0.00022191,4]
[346119776,1734717049387,-223.41,0.00022191,4]
[346119777,1734717049396,-720.12,0.00022191,4]
[346119778,1734717049406,-500.0,0.00022191,4]
[346119779,1734717049415,-1212.6,0.00022191,4]
[346119780,1734717049424,-1773.27,0.00022191,4]
[346119781,1734717049434,-500.0,0.00022191,4]
[346119782,1734717049443,-500.0,0.00022191,4]
[346119783,1734717049452,-500.0,0.00022191,4]
[346119784,1734717049462,-500.0,0.00022191,4]
[346119785,1734717049471,-500.0,0.00022191,4]
[346119786,1734717049481,-500.0,0.00022191,4]
[346119787,1734717049492,-505.68,0.00022191,4]
[346119788,1734717049502,-500.0,0.00022191,4]
[346119789,1734717049511,-500.0,0.00022191,4]
[346119790,1734717049521,-500.0,0.00022191,4]
[346119791,1734717049531,-500.0,0.00022191,4]
[346119792,1734717049540,-500.0,0.00022191,4]
[346119793,1734717049549,-500.0,0.00022191,4]
[346119794,1734717049559,-500.0,0.00022191,4]
[346119795,1734717049569,-618.94,0.00022191,4]
[346119796,1734717049579,-822.35,0.00022191,4]
[346119797,1734717049588,-500.0,0.00022191,4]
[346119798,1734717049598,-500.0,0.00022191,4]
[346119799,1734717049607,-162.16626108,0.00022191,4]
[346119800,1734717049617,-500.0,0.00022191,4]
[346119801,1734717049626,-625.99,0.00022191,4]
[346119802,1734717049639,-500.0,0.00022191,4]
[346119803,1734717049650,-500.0,0.00022191,4]
[346119804,1734717049660,-500.0,0.00022191,4]
[346119805,1734717049673,-500.0,0.00022191,4]
[346119806,1734717049683,-2778.57,0.00022191,4]
[346119807,1734717049693,-927.57,0.00022191,4]
[346119808,1734717049703,-500.0,0.00022191,4]
[346119809,1734717049712,-500.0,0.00022191,4]
[346119810,1734717049722,-500.0,0.00022191,4]
[346119811,1734717049732,-500.0,0.00022191,4]
[346119812,1734717049741,-833.59,0.00022191,4]
[346119813,1734717049751,-585.58,0.00022191,4]
[346119814,1734717049761,-500.0,0.00022191,4]
[346119815,1734717049770,-500.0,0.00022191,4]
[346119816,1734717049780,-500.0,0.00022191,4]
[346119817,1734717049789,-630.67,0.00022191,4]
[346119818,1734717049799,-500.0,0.00022191,4]
[346119819,1734717049808,-500.0,0.00022191,4]
[346119820,1734717049817,-1253.39,0.00022191,4]
[346119821,1734717049826,-584.12,0.00022191,4]
[346119822,1734717049836,-577.86,0.00022191,4]
[346119823,1734717049845,-500.0,0.00022191,4]
[346119824,1734717049854,-500.0,0.00022191,4]
[346119825,1734717049864,-500.0,0.00022191,4]
[346119826,1734717049873,-500.0,0.00022191,4]
[346119827,1734717049886,-500.0,0.00022191,4]
[346119828,1734717049896,-500.0,0.00022191,4]
[346119829,1734717049909,-500.0,0.00022191,4]
[346119830,1734717049918,-500.0,0.00022191,4]
[346119831,1734717049927,-505.09,0.00022191,4]
[346119832,1734717049936,-381.81,0.00022191,4]
[346119833,1734717049946,-500.0,0.00022191,4]
[346119834,1734717049956,-150.0,0.000222,4]
[346119835,1734717049966,-150.0,0.000222,4]
[346119836,1734717049976,-768.28,0.00022232,2]
[346119837,1734717049986,-150.0,0.000224,4]
[346119838,1734717049995,-985.74,0.00022414,2]
[346119839,1734717050005,-1018.88,0.00022414,2]
[346119840,1734717050015,-7500.0,0.00022464,2]
[346119841,1734717050024,-163.125633,0.00022465,4]
[346119842,1734717050034,-172.275586,0.00022465,4]
[346119843,1734717050043,-500.0,0.00022465,4]
[346119844,1734717050053,-500.0,0.00022465,4]
[346119845,1734717050063,-500.0,0.00022465,4]
[346119846,1734717050073,-500.0,0.00022465,4]
[346119847,1734717050082,-320.19,0.00022465,2]
[346119848,1734717050092,-271.53,0.00022465,4]
[346119849,1734717050101,-161.97,0.00022465,4]
[346119850,1734717050110,-1536.49,0.00022465,4]
[346119851,1734717050119,-500.0,0.00022465,4]
[346119852,1734717050131,-500.0,0.00022465,4]
[346119853,1734717050140,-500.0,0.00022465,4]
[346119854,1734717050149,-403.33452647,0.00022465,4]
[346119855,1734717050159,-617.34,0.00022465,4]
[346119856,1734717050168,-500.0,0.00022465,4]
[346119857,1734717050178,-500.0,0.00022465,4]
[346119858,1734717050187,-155.24194576,0.00022465,4]
[346119859,1734717050197,-500.0,0.00022465,4]
[346119860,1734717050206,-500.0,0.00022465,4]
[346119861,1734717050215,-500.0,0.00022465,4]
[346119862,1734717050228,-500.0,0.00022465,4]
[346119863,1734717050237,-500.0,0.00022465,4]
[346119864,1734717050246,-500.0,0.00022465,4]
[346119865,1734717050255,-500.0,0.00022465,4]
[346119866,1734717050264,-500.0,0.00022465,4]
[346119867,1734717050274,-739.57,0.00022465,4]
[346119868,1734717050283,-500.0,0.00022465,4]
[346119869,1734717050292,-500.0,0.00022465,4]
[346119870,1734717050301,-2035.23,0.00022465,4]
[346119871,1734717050310,-500.0,0.00022465,4]
[346119872,1734717050320,-500.0,0.00022465,4]
[346119873,1734717050329,-500.0,0.00022465,4]
[346119874,1734717050339,-500.0,0.00022465,4]
[346119875,1734717050348,-500.0,0.00022465,4]
[346119876,1734717050357,-500.0,0.00022465,4]
[346119877,1734717050366,-500.0,0.00022465,4]
[346119878,1734717050376,-500.0,0.00022465,4]
[346119879,1734717050387,-500.0,0.00022465,4]
[346119880,1734717050397,-500.0,0.00022465,4]
[346119881,1734717050406,-1297.48,0.00022465,4]
[346119882,1734717050415,-500.0,0.00022465,4]
[346119883,1734717050425,-500.0,0.00022465,4]
[346119884,1734717050434,-500.0,0.00022465,4]
[346119885,1734717050444,-500.0,0.00022465,4]
[346119886,1734717050453,-500.0,0.00022465,4]
[346119887,1734717050463,-1607.19,0.00022465,4]
[346119888,1734717050473,-718.94,0.00022465,4]
[346119889,1734717050482,-500.0,0.00022465,4]
[346119890,1734717050492,-1000.0,0.00022465,4]
[346119891,1734717050501,-640.65,0.00022465,4]
[346119892,1734717050511,-620.48,0.00022465,4]
[346119893,1734717050520,-720.12,0.00022465,4]
[346119894,1734717050530,-500.0,0.00022465,4]
[346119895,1734717050539,-1212.6,0.00022465,4]
[346119896,1734717050549,-1773.27,0.00022465,4]
[346119897,1734717050558,-500.0,0.00022465,4]
[346119898,1734717050568,-500.53,0.00022465,4]
[346119899,1734717050578,-500.0,0.00022465,4]
[346119900,1734717050587,-500.0,0.00022465,4]
[346119901,1734717050597,-500.0,0.00022465,4]
[346119902,1734717050606,-500.0,0.00022465,4]
[346119903,1734717050616,-505.68,0.00022465,4]
[346119904,1734717050626,-500.0,0.00022465,4]
[346119905,1734717050637,-500.0,0.00022465,4]
[346119906,1734717050647,-500.0,0.00022465,4]
[346119907,1734717050657,-500.0,0.00022465,4]
[346119908,1734717050667,-500.0,0.00022465,4]
[346119909,1734717050676,-500.0,0.00022465,4]
[346119910,1734717050685,-438.37,0.00022465,4]
[346119911,1734717050695,-618.94,0.00022465,4]
[346119912,1734717050704,-822.35,0.00022465,4]
[346119913,1734717050714,-500.0,0.00022465,4]
[346119914,1734717050724,-500.0,0.00022465,4]
[346119915,1734717050734,-500.0,0.00022465,4]
[346119916,1734717050744,-625.99,0.00022465,4]
[346119917,1734717050754,-500.0,0.00022465,4]
[346119918,1734717050764,-500.0,0.00022465,4]
[346119919,1734717050774,-500.0,0.00022465,4]
[346119920,1734717050783,-500.0,0.00022465,4]
[346119921,1734717050793,-2778.57,0.00022465,4]
[346119922,1734717050803,-927.57,0.00022465,4]
[346119923,1734717050812,-500.0,0.00022465,4]
[346119924,1734717050822,-500.0,0.00022465,4]
[346119925,1734717050831,-340.97,0.00022465,4]
[346119926,1734717050842,-500.0,0.00022465,4]
[346119927,1734717050852,-833.59,0.00022465,4]
[346119928,1734717050864,-500.0,0.00022465,4]
[346119929,1734717050874,-500.0,0.00022465,4]
[346119930,1734717050886,-500.0,0.00022465,4]
[346119931,1734717050898,-630.67,0.00022465,4]